bitfinex/quotes_ETHUSD_20241106
["timestamp","ask_amount","ask_price","bid_price","bid_amount"]
[1730854091386,5.0,2476.4,2476.0,0.0609275]
[1730854092494,9.8637,2476.1,2476.0,0.0609275]
[1730854092943,5.8251,2476.1,2476.0,0.0609275]
[1730854093298,0.8251,2476.6,2476.3,4.03814]
[1730854093499,0.8251,2477.0,2476.6,4.03772]
[1730854093787,0.01,2477.6,2476.0,0.0609275]
[1730854093788,5.8251,2477.8,2477.3,4.03665]
[1730854094099,5.8251,2477.8,2477.0,4.03712]
[1730854094100,5.0,2477.5,2477.0,4.03712]
[1730854094296,5.0,2477.5,2477.0,4.03701]
[1730854094483,5.0,2477.5,2476.9,0.55]
[1730854094650,5.0,2477.5,2477.0,4.03711]
[1730854095274,5.0,2477.5,2476.9,4.58717]
[1730854095485,5.0,2477.5,2476.9,0.55]
[1730854095691,5.5,2477.5,2476.8,4.03743]
[1730854096187,5.5,2477.5,2476.6,4.03774]
[1730854096391,0.8251,2477.0,2476.2,4.03834]
[1730854096576,5.0,2476.8,2476.0,4.0996275]
[1730854096779,9.03749,2476.8,2476.0,4.0996275]
[1730854096980,9.03749,2476.8,2476.0,0.0609275]
[1730854097277,9.03822,2476.4,2476.0,0.0609275]
[1730854097868,0.8251,2476.3,2476.0,0.0609275]
[1730854098398,2.215256,2476.3,2476.0,0.0609275]
[1730854098597,0.8251,2476.3,2476.0,0.0609275]
[1730854098798,0.8251,2476.3,2476.0,4.0996675]
[1730854099000,5.0,2476.7,2476.1,0.55]
[1730854099294,0.8251,2477.3,2476.9,4.03729]
[1730854099496,0.8251,2477.3,2476.6,0.55]
[1730854099654,0.8251,2477.3,2476.7,4.03753]
[1730854100153,0.8251,2477.3,2476.6,0.55]
[1730854100494,5.0,2477.1,2476.3,4.03819]
[1730854100662,5.0,2477.1,2476.4,4.038]
[1730854100863,5.0,2477.1,2476.3,4.03819]
[1730854101067,5.0,2476.7,2476.1,4.03847]
[1730854101698,0.903747,2476.6,2476.0,0.0609275]
[1730854101904,9.86331,2476.4,2476.0,0.0609275]
[1730854102107,4.03828,2476.3,2476.0,0.0609275]
[1730854102277,9.86331,2476.4,2476.0,0.0609275]
[1730854102682,4.05753,2476.8,2476.1,4.0386]
[1730854102683,5.0,2476.7,2476.1,4.0386]
[1730854102889,0.8251,2476.8,2476.1,4.0386]
[1730854103062,0.8251,2476.8,2476.1,0.40995275]
[1730854103262,0.8251,2476.8,2476.0,0.0609275]
[1730854103496,0.8251,2476.8,2476.4,4.03801]
[1730854103703,0.8251,2476.8,2476.3,0.55]
[1730854103901,0.8251,2476.8,2476.0,0.0609275]
[1730854103902,5.0,2476.7,2476.1,0.55]
[1730854104104,0.986259,2476.6,2476.0,0.0609275]
[1730854104309,0.8251,2476.8,2476.0,0.0609275]
[1730854104616,5.0,2477.0,2476.0,0.0609275]
[1730854104763,5.0,2477.0,2476.3,4.03818]
[1730854105109,5.0,2476.7,2476.2,4.03842]
[1730854105262,5.0,2476.7,2476.1,4.0385]
[1730854105462,5.0,2476.7,2476.2,4.03835]
[1730854105699,5.0,2476.7,2476.2,4.03844]
[1730854105862,5.0,2476.7,2476.1,4.0385]
[1730854106270,5.0,2476.7,2476.0,0.0609275]
[1730854106473,5.0,2476.7,2476.0,4.0996075]
[1730854106820,5.0,2477.0,2476.3,4.03826]
[1730854107182,5.0,2476.7,2476.2,4.03842]
[1730854107369,9.03715,2477.0,2476.2,4.03842]
[1730854107575,5.0,2477.5,2476.9,4.0372]
[1730854107809,5.0,2477.2,2476.7,4.03753]
[1730854108315,5.0,2477.2,2476.6,0.55]
[1730854108499,4.03641,2477.5,2476.2,4.03835]
[1730854108500,5.0,2476.9,2476.2,4.03835]
[1730854109012,4.03763,2476.7,2476.0,0.0609275]
[1730854109184,9.441643,2476.6,2476.0,0.0609275]
[1730854109585,5.403763,2476.6,2476.0,0.0609275]
[1730854109828,5.0,2476.6,2476.0,4.0996675]
[1730854110003,0.8093,2477.7,2476.9,0.825]
[1730854110216,0.8093,2477.7,2477.0,4.03714]
[1730854110377,5.0,2477.8,2477.4,4.03641]
[1730854110769,5.0,2477.8,2477.5,4.03631]
[1730854111098,5.0,2477.8,2477.4,4.0364]
[1730854111620,5.0,2477.8,2477.3,4.58665]
[1730854111791,5.0,2477.8,2477.3,0.55]
[1730854111989,5.903553,2477.8,2477.3,0.55]
[1730854112307,5.0,2477.8,2477.4,4.03637]
[1730854112476,0.8093,2478.1,2477.7,4.036]
[1730854112675,5.0,2478.5,2477.7,4.036]
[1730854112676,5.8093,2478.5,2477.8,0.55]
[1730854113005,5.8093,2478.5,2477.9,4.03566]
[1730854113206,5.0,2478.2,2477.5,4.03622]
[1730854113411,4.03534,2478.1,2477.3,4.03657]
[1730854113632,4.03534,2478.1,2477.0,4.7637505]
[1730854113633,0.903534,2478.1,2477.5,4.03632]
[1730854113965,5.0,2478.2,2477.7,4.03599]
[1730854114074,4.03488,2478.4,2477.6,0.55]
[1730854114477,5.0,2478.2,2477.6,4.03614]
[1730854114702,5.0,2478.2,2477.6,4.03606]
[1730854115119,5.0,2478.2,2477.6,8.07213]
[1730854115318,5.903494,2478.2,2477.6,8.07213]
[1730854115473,0.903494,2478.2,2477.8,4.03574]
[1730854115675,5.8093,2478.5,2477.9,0.55]
[1730854115907,5.8093,2478.5,2478.1,4.03526]
[1730854116120,5.8093,2478.5,2477.9,0.55]
[1730854116420,5.8093,2478.8,2478.0,4.03551]
[1730854116580,5.0,2479.1,2478.7,4.03427]
[1730854116779,9.03372,2479.1,2478.0,0.458551]
[1730854116993,9.03372,2479.1,2477.8,7.7637505]
[1730854116994,5.0,2478.7,2478.1,4.03525]
[1730854117610,5.0,2478.7,2478.1,4.03523]
[1730854117775,5.0,2478.7,2477.9,8.07114]
[1730854117989,5.0,2478.7,2478.0,0.55]
[1730854118322,5.0,2478.7,2477.8,4.7637505]
[1730854118323,5.0,2478.7,2478.1,4.03526]
[1730854118489,5.0,2479.1,2478.1,0.862088]
[1730854118690,4.0339,2479.0,2478.2,4.58509]
[1730854119083,5.0,2478.8,2478.2,4.58509]
[1730854119285,5.0,2478.8,2478.2,4.58507]
[1730854119484,5.0,2478.8,2478.3,4.0349]
[1730854119813,5.0,2479.1,2478.6,4.03443]
[1730854120404,5.0,2479.1,2478.5,0.55]
[1730854121031,5.0,2479.1,2478.8,4.03405]
[1730854121176,5.0,2479.1,2478.8,8.06817]
[1730854121377,5.0,2479.1,2478.8,4.03405]
[1730854121624,5.0,2479.1,2478.6,4.03437]
[1730854122284,5.0,2478.8,2478.0,4.03543]
[1730854122607,0.5,2478.7,2478.3,4.035]
[1730854122924,5.0,2479.0,2477.8,5.5887505]
[1730854122925,5.0,2479.0,2478.6,4.03451]
[1730854123279,5.0,2479.0,2478.7,8.06861]
[1730854123506,5.0,2479.0,2478.8,4.03418]
[1730854123708,0.8093,2479.2,2478.5,0.8136]
[1730854123907,5.0,2479.4,2478.8,4.03417]
[1730854124129,0.0609275,2480.9,2480.0,0.8136]
[1730854124331,0.0609275,2480.9,2480.6,10.1586305]
[1730854124837,5.0709275,2482.1,2480.8,0.55]
[1730854124838,9.0998375,2482.1,2480.8,0.55]
[1730854124979,9.0998375,2482.1,2482.0,4.579]
[1730854124980,0.0609275,2482.1,2482.0,4.579]
[1730854125407,0.0609275,2482.1,2481.8,4.02918]
[1730854125622,0.0609275,2482.1,2481.6,0.8136]
[1730854125900,0.0609275,2482.1,2481.4,4.02982]
[1730854125901,5.0,2482.0,2481.4,4.02982]
[1730854126098,5.50609275,2482.0,2481.4,4.02982]
[1730854126317,5.50609275,2482.0,2481.5,0.55]
[1730854126826,0.0609275,2482.1,2481.7,4.02933]
[1730854127287,0.0609275,2482.1,2481.8,0.55]
[1730854127620,0.0609275,2482.1,2482.0,4.579]
[1730854128322,0.0609275,2482.1,2482.0,0.55]
[1730854128884,0.005,2482.5,2482.1,0.55]
[1730854129286,0.005,2482.5,2482.0,0.55]
[1730854129984,0.0609275,2483.3,2482.3,4.7637505]
[1730854130184,0.0609275,2483.3,2482.4,1.16192927]
[1730854130388,0.0609275,2483.3,2482.6,0.55]
[1730854131182,5.0,2483.1,2481.7,0.8236]
[1730854131384,5.0,2482.8,2481.9,0.8136]
[1730854131617,5.0,2482.5,2481.9,0.8136]
[1730854131928,0.5,2482.4,2481.4,0.8136]
[1730854132523,0.5,2482.4,2481.5,0.01]
[1730854132680,5.0,2482.8,2481.5,0.01]
[1730854132884,5.0,2482.8,2481.7,4.7737505]
[1730854133236,5.0,2483.2,2482.0,0.8136]
[1730854133415,5.0,2483.2,2482.1,0.55]
[1730854134489,0.0609275,2483.3,2482.3,0.8136]
[1730854134828,0.0609275,2483.3,2482.4,0.94236]
[1730854135586,0.0609275,2483.3,2482.6,4.7637505]
[1730854135788,0.0609275,2483.3,2482.9,0.8136]
[1730854136097,0.0609275,2483.3,2483.0,5.3237505]
[1730854136420,0.0609275,2483.3,2482.9,0.8136]
[1730854136588,0.0609275,2483.3,2483.0,0.55]
[1730854136934,0.0609275,2483.3,2482.5,0.8136]
[1730854137089,1.05159825,2483.3,2482.5,0.8136]
[1730854137626,0.0609275,2483.3,2482.5,0.8136]
[1730854137992,0.0609275,2483.3,2482.6,0.55]
[1730854138291,0.0609275,2483.3,2482.7,0.01]
[1730854138717,0.0609275,2483.3,2482.6,0.55]
[1730854140324,0.0609275,2483.3,2482.8,0.55]
[1730854140540,0.0609275,2483.3,2482.7,4.03777]
[1730854140541,0.0609275,2483.3,2483.2,0.01]
[1730854140683,0.02,2484.0,2483.2,0.01]
[1730854140684,0.02,2484.0,2483.6,0.55]
[1730854140884,0.02,2484.0,2483.9,8.37312]
[1730854141098,0.00662999,2484.3,2484.2,0.01]
[1730854141348,0.0609275,2484.6,2484.4,4.03508]
[1730854141642,0.0609275,2484.6,2484.5,0.55]
[1730854141929,0.0609275,2484.6,2484.4,0.55]
[1730854142286,0.7978,2486.0,2484.7,0.01]
[1730854142287,4.02255,2486.0,2484.7,0.01]
[1730854142520,5.7878,2486.1,2484.9,0.7872]
[1730854142706,5.7878,2486.1,2484.9,0.7772]
[1730854142707,4.0227,2485.9,2484.9,0.7772]
[1730854142912,0.46929025,2485.8,2484.9,0.7772]
[1730854143089,4.49214025,2485.8,2484.9,0.7772]
[1730854143286,0.46929025,2485.8,2484.9,0.7772]
[1730854143493,0.0609275,2485.8,2485.1,0.01]
[1730854143722,0.0609275,2485.8,2485.5,0.55]
[1730854143907,4.02177,2486.5,2485.5,0.55]
[1730854143908,4.02199,2486.4,2485.5,0.55]
[1730854144107,0.0083155,2485.8,2485.0,0.7772]
[1730854144293,0.0083155,2485.8,2485.3,0.01]
[1730854144492,0.0083155,2485.8,2485.5,0.01]
[1730854144737,0.0083155,2485.8,2485.5,0.56]
[1730854145050,5.0,2487.0,2485.9,0.55]
[1730854145188,4.02212,2486.3,2485.8,0.7772]
[1730854145391,4.02179,2486.5,2485.9,0.55]
[1730854145738,4.02181,2486.5,2485.9,0.55]
[1730854145916,4.0205,2487.3,2485.9,0.55]
[1730854145917,4.02162,2486.6,2486.3,0.01]
[1730854146235,4.02162,2486.6,2486.0,0.01]
[1730854146236,4.02097,2487.0,2486.9,0.01]
[1730854146436,4.02097,2487.0,2486.6,0.01]
[1730854146437,4.423127,2487.0,2486.6,0.01]
[1730854146593,4.423127,2487.0,2486.9,0.01]
[1730854146792,4.423127,2487.0,2486.6,0.02]
[1730854146793,4.02118,2486.9,2486.6,0.02]
[1730854147127,4.02118,2486.9,2486.6,0.01]
[1730854147427,4.02024,2487.5,2487.2,0.01]
[1730854147643,4.01985,2487.7,2487.4,0.01]
[1730854147797,4.01996,2487.6,2487.4,0.01]
[1730854147986,4.0201,2487.5,2487.2,0.01]
[1730854148320,4.01983,2487.7,2487.6,0.01]
[1730854148638,4.0201,2487.5,2487.4,0.01]
[1730854148843,0.49220808,2487.7,2487.0,0.01]
[1730854149123,4.02042,2487.3,2487.2,0.01]
[1730854149840,3.0,2488.1,2486.9,0.01]
[1730854149841,0.00311829,2488.0,2487.6,0.01]
[1730854149993,0.00311829,2488.0,2487.9,0.57]
[1730854150194,4.01875,2488.4,2487.9,0.57]
[1730854150195,4.01887,2488.3,2488.2,0.02]
[1730854150490,4.01887,2488.3,2488.0,0.7772]
[1730854150491,0.00779368,2489.0,2488.9,0.57]
[1730854150694,4.01783,2488.9,2488.8,0.7772]
[1730854150997,4.01783,2488.9,2488.4,0.02]
[1730854150998,4.01848,2488.5,2488.4,0.01]
[1730854151231,4.01783,2488.9,2488.3,0.56]
[1730854151435,4.01816,2488.7,2488.6,0.01]
[1730854151637,4.01848,2488.5,2488.4,0.01]
[1730854151841,4.01848,2488.5,2488.2,0.7872]
[1730854151842,4.01864,2488.4,2488.2,0.7872]
[1730854152004,4.01912,2488.2,2488.0,0.02]
[1730854152204,4.01929,2488.0,2487.7,0.01]
[1730854152445,4.01963,2487.8,2487.6,0.01]
[1730854152644,4.01963,2487.8,2487.5,0.01]
[1730854153246,4.01989,2487.7,2487.4,0.01]
[1730854153458,4.01989,2487.7,2487.2,0.02]
[1730854153459,0.803952,2487.7,2487.2,0.02]
[1730854153606,4.01974,2487.8,2487.2,0.02]
[1730854153808,4.02,2487.6,2487.2,0.02]
[1730854154013,4.01924,2488.1,2487.6,0.01]
[1730854154326,4.01942,2488.0,2487.6,0.01]
[1730854154859,0.3367,2488.5,2487.8,0.01]
[1730854155027,4.01894,2488.3,2487.8,0.01]
[1730854155349,4.018,2488.8,2488.3,0.01]
[1730854155544,0.80436537,2488.8,2488.3,0.01]
[1730854155746,0.2,2488.5,2488.2,0.01]
[1730854156063,0.2,2488.5,2488.4,0.01]
[1730854156345,0.2,2488.5,2488.4,0.02]
[1730854156734,0.2,2488.5,2488.4,0.7972]
[1730854156945,0.2,2488.5,2488.4,1.3472]
[1730854157309,0.00779368,2489.0,2488.4,1.3472]
[1730854157652,4.02546368,2489.0,2488.9,0.01]
[1730854157857,0.00779368,2489.0,2488.9,0.01]
[1730854158159,0.00779368,2489.0,2488.9,0.02]
[1730854158338,0.00779368,2489.0,2488.9,0.01]
[1730854158646,0.00779368,2489.0,2488.9,0.02]
[1730854159353,4.018,2488.8,2488.7,0.01]
[1730854159646,4.018,2488.8,2488.6,0.01]
[1730854159647,0.40257937,2488.8,2488.6,0.01]
[1730854159856,4.01848,2488.5,2488.4,0.01]
[1730854160025,0.00779368,2489.0,2488.2,0.02]
[1730854160221,4.0188,2488.3,2488.2,0.01]
[1730854160408,4.01907,2488.2,2488.0,0.01]
[1730854160855,4.01913,2488.1,2488.0,0.01]
[1730854161146,4.02552368,2489.0,2488.3,0.01]
[1730854161332,0.00779368,2489.0,2488.6,0.02]
[1730854161532,4.0181,2488.8,2488.6,0.02]
[1730854161810,0.00779368,2489.0,2488.4,0.01]
[1730854162013,4.01844,2488.6,2488.4,0.01]
[1730854162267,4.01818,2488.7,2488.4,0.01]
[1730854162423,0.00779368,2489.0,2488.7,0.02]
[1730854162827,0.00779368,2489.0,2488.9,0.01]
[1730854163048,0.00779368,2489.0,2488.9,0.57]
[1730854163212,0.088316,2489.3,2488.9,0.57]
[1730854163213,0.088316,2489.3,2489.2,4.81455]
[1730854163417,2.01192802,2489.7,2489.6,0.7972]
[1730854163637,2.01192802,2489.7,2489.6,1.3472]
[1730854164159,0.088316,2491.0,2490.6,0.7772]
[1730854164376,0.088316,2491.0,2490.8,0.01]
[1730854164571,5.0,2492.1,2491.8,0.01]
[1730854164572,4.01268,2492.1,2491.8,0.01]
[1730854164864,4.01268,2492.1,2491.4,0.01]
[1730854164865,4.01314,2491.9,2491.4,0.01]
[1730854165014,4.01314,2491.9,2490.9,0.7772]
[1730854165015,0.401268,2492.1,2491.3,0.01]
[1730854165215,4.01409,2491.3,2490.9,0.7972]
[1730854165449,4.01361,2491.6,2490.9,0.7972]
[1730854165856,4.35621,2492.7,2490.9,0.7972]
[1730854165857,4.01365,2491.5,2491.0,0.01]
[1730854166014,4.01397,2491.3,2490.9,0.7872]
[1730854166217,4.35778,2491.8,2491.1,0.01]
[1730854166424,5.0,2492.6,2491.3,0.01]
[1730854166425,4.01302,2491.9,2491.3,0.01]
[1730854166648,4.01323,2491.8,2491.1,0.02]
[1730854166865,4.01349,2491.6,2491.1,0.02]
[1730854167061,4.01323,2491.8,2491.1,0.02]
[1730854167062,4.01333,2491.7,2491.1,0.02]
[1730854167355,0.802593,2491.9,2491.1,0.01]
[1730854167521,4.01345,2491.7,2491.1,0.02]
[1730854167722,8.02693,2491.7,2491.1,0.02]
[1730854167962,4.01345,2491.7,2491.1,0.02]
[1730854168265,4.01407,2491.3,2490.7,0.01]
[1730854168563,4.01323,2491.8,2491.2,0.01]
[1730854168764,0.3445,2492.2,2491.0,0.01]
[1730854168765,4.01376,2491.5,2491.0,0.01]
[1730854168921,4.01407,2491.3,2490.9,0.01]
[1730854169123,5.1082505,2492.2,2491.2,0.02]
[1730854169124,0.3445,2492.2,2491.2,0.02]
[1730854169330,4.01139,2492.9,2491.6,0.02]
[1730854169524,4.01188,2492.6,2492.0,0.01]
[1730854169744,4.01188,2492.6,2491.9,0.01]
[1730854169745,4.01202,2492.6,2491.9,0.02]
[1730854169925,4.01202,2492.6,2491.7,0.01]
[1730854170223,4.35578,2493.0,2492.0,0.01]
[1730854170224,4.0122,2492.4,2492.0,0.01]
[1730854170624,4.01254,2492.2,2491.7,0.02]
[1730854170863,4.01233,2492.4,2491.9,0.01]
[1730854171167,4.7987505,2493.2,2492.7,0.01]
[1730854171168,0.035,2493.2,2492.7,0.01]
[1730854171367,0.0084975,2493.9,2493.7,0.01]
[1730854171588,4.10826978,2495.3,2493.1,0.8147]
[1730854171589,4.0083,2494.9,2494.2,0.56]
[1730854171868,4.0083,2494.9,2493.1,4.01091]
[1730854171869,0.5042,2495.2,2493.0,0.8147]
[1730854172023,4.00965,2494.0,2493.0,0.8147]
[1730854172366,0.01,2495.3,2493.2,0.8147]
[1730854172662,0.5142,2495.5,2493.2,3.8147]
[1730854172835,4.00752,2495.4,2494.0,0.01]
[1730854173042,9.01667,2495.9,2494.6,0.8147]
[1730854173043,4.00672,2495.9,2494.6,0.8147]
[1730854173237,0.01,2496.7,2494.9,35.0]
[1730854173478,4.0055,2496.6,2495.0,1.44483837]
[1730854173625,6.074924,2497.0,2495.0,4.7737505]
[1730854173626,1.074924,2497.0,2495.0,4.7737505]
[1730854173826,4.00622,2496.2,2495.3,0.8147]
[1730854174072,9.01512,2496.8,2495.3,0.8147]
[1730854174073,5.01,2496.8,2495.3,0.8147]
[1730854174237,0.01,2496.6,2495.3,0.8147]
[1730854174440,4.00611,2496.2,2495.3,0.8147]
[1730854174654,0.624772,2496.9,2495.3,0.8147]
[1730854174655,0.120572,2496.9,2495.3,0.8147]
[1730854174838,4.00562,2496.5,2495.3,0.8147]
[1730854175040,0.120572,2496.9,2495.9,35.0]
[1730854175255,4.00583,2496.4,2495.9,35.0]
[1730854175567,4.00606,2496.3,2495.9,35.0]
[1730854175752,4.0056,2496.5,2495.9,35.0]
[1730854175959,4.00594,2496.3,2495.9,35.0]
[1730854176329,4.125612,2496.9,2495.9,35.0]
[1730854176330,4.00545,2496.6,2495.9,35.0]
[1730854176529,0.120572,2496.9,2495.9,35.0]
[1730854176530,0.130572,2496.9,2495.9,35.0]
[1730854176822,0.130572,2496.9,2495.3,0.8147]
[1730854176823,4.00653,2496.0,2495.3,0.8147]
[1730854177028,4.00608,2496.2,2495.3,0.8147]
[1730854177251,0.900608,2496.1,2495.3,0.8147]
[1730854177463,4.00707,2495.6,2495.3,0.8147]
[1730854177685,0.5042,2496.4,2495.3,0.8147]
[1730854177686,5.5042,2497.6,2495.5,4.00708]
[1730854177828,4.00641928,2498.0,2495.5,4.00708]
[1730854177829,4.00428,2497.4,2496.2,0.8147]
[1730854178028,4.00459,2497.2,2496.2,0.8147]
[1730854178329,4.00541,2496.7,2496.2,0.8147]
[1730854178555,4.00373,2497.7,2496.2,0.8147]
[1730854178874,0.01,2498.2,2496.8,35.8147]
[1730854179171,4.00319,2498.1,2496.8,39.39617]
[1730854179326,4.00349,2497.9,2496.8,39.39617]
[1730854179525,4.00306,2498.1,2497.0,0.55]
[1730854179727,4.00642928,2498.0,2497.0,0.55]
[1730854179929,4.0039,2497.6,2497.4,35.0]
[1730854180130,4.40439,2497.5,2497.4,35.0]
[1730854180372,4.00418,2497.4,2496.8,0.8147]
[1730854180536,4.00447,2497.3,2496.8,0.8147]
[1730854180733,4.00449,2497.2,2496.8,0.8147]
[1730854180932,0.40039,2497.5,2496.8,0.8147]
[1730854181160,0.40039,2497.5,2495.9,0.8147]
[1730854181471,4.00606,2496.3,2495.9,0.8147]
[1730854181653,4.00671,2495.9,2495.0,0.8147]
[1730854181867,0.400606,2496.2,2495.0,0.8147]
[1730854181868,4.00686,2495.8,2495.0,0.8147]
[1730854182161,4.00766,2495.3,2494.5,0.8147]
[1730854182468,4.00899,2494.4,2493.2,4.8256]
[1730854182670,4.0093,2494.2,2493.2,0.8147]
[1730854182854,4.00945,2494.2,2493.2,0.8147]
[1730854183064,4.00945,2494.2,2492.4,4.01209]
[1730854183065,4.0107,2493.4,2491.9,0.8147]
[1730854183367,0.6996,2494.1,2491.9,0.8147]
[1730854183368,4.01013,2493.7,2492.3,4.01233]
[1730854183585,4.01056,2493.5,2492.4,35.0]
[1730854183743,4.411666,2493.4,2492.4,35.0]
[1730854183932,4.411666,2493.4,2491.6,4.0134]
[1730854183933,4.01139,2492.9,2491.7,0.01]
[1730854184137,5.401056,2493.4,2491.7,0.01]
[1730854184138,0.401056,2493.4,2492.2,4.01251]
[1730854184377,0.401056,2493.4,2492.3,35.0]
[1730854184880,0.6996,2493.5,2492.4,0.08022485]
[1730854185034,4.71004,2493.5,2492.1,0.8214]
[1730854185239,4.01093,2493.2,2492.1,0.8214]
[1730854185432,0.6996,2493.5,2492.1,0.8214]
[1730854185433,4.0111,2493.1,2492.1,0.8214]
[1730854185873,0.6996,2493.5,2492.2,35.0]
[1730854186058,0.6996,2493.5,2492.3,0.08023226]
[1730854186371,4.00994,2493.8,2492.6,4.01187]
[1730854186577,4.01028,2493.6,2492.6,4.01187]
[1730854186781,4.01028,2493.6,2492.7,35.0]
[1730854186983,4.00994,2493.8,2492.7,35.0]
[1730854186984,4.00994,2493.8,2492.8,0.08021583]
[1730854187271,4.0103,2493.6,2492.6,4.01187]
[1730854187583,4.0103,2493.6,2492.1,0.8314]
[1730854187584,4.7637505,2493.3,2492.1,0.27312711]
[1730854187741,4.7637505,2493.3,2492.3,4.0123]
[1730854187742,4.01081,2493.3,2492.3,4.0123]
[1730854188087,3.0,2493.5,2492.4,35.0]
[1730854188381,4.01108,2493.1,2492.4,35.0]
[1730854188576,4.01145,2492.9,2492.4,35.0]
[1730854188785,1.626083,2493.1,2492.4,35.0]
[1730854188984,4.01202,2492.6,2492.4,35.0]
[1730854189165,4.01181,2492.7,2491.6,4.01339]
[1730854189344,4.01146,2492.9,2491.8,4.01305]
[1730854189543,0.8239,2493.1,2491.9,35.08024286]
[1730854189789,4.01051,2493.5,2492.3,4.01224]
[1730854189945,4.01048,2493.5,2492.3,4.01224]
[1730854190289,0.8239,2493.6,2492.0,4.01278]
[1730854190436,0.8239,2493.6,2492.7,4.01161]
[1730854190643,0.94732905,2493.7,2493.0,4.01111]
[1730854190840,4.00984,2493.9,2492.6,0.8214]
[1730854190841,4.01075,2493.3,2492.6,0.8214]
[1730854191089,0.8239,2494.1,2492.7,4.01166]
[1730854191255,4.01038,2493.6,2492.7,4.01168]
[1730854191452,4.01044,2493.5,2492.8,35.0]
[1730854191784,4.01068,2493.4,2492.8,35.0]
[1730854191989,0.8239,2494.1,2492.8,35.0]
[1730854192193,4.0091,2494.4,2493.6,4.01026]
[1730854192344,4.0091,2494.4,2493.4,8.02099]
[1730854192676,4.0091,2494.4,2493.5,0.8214]
[1730854192677,8.0182,2494.4,2493.5,0.8214]
[1730854192882,0.8239,2494.7,2493.5,0.8214]
[1730854193090,0.8239,2494.7,2492.5,3.0]
[1730854193091,4.00972,2494.0,2493.1,4.01098]
[1730854193238,5.0,2494.4,2493.0,0.8214]
[1730854193239,4.01009,2493.8,2493.0,0.8214]
[1730854193445,4.01009,2493.8,2492.2,0.01]
[1730854193446,8.7736905,2493.8,2492.3,4.01225]
[1730854193769,4.01124,2493.0,2492.2,4.01251]
[1730854194145,4.01124,2493.0,2492.1,0.8214]
[1730854194146,4.0116,2492.8,2492.1,0.8214]
[1730854194351,4.01149,2492.9,2492.1,0.8214]
[1730854194557,4.01171,2492.7,2492.1,0.8214]
[1730854194777,4.01171,2492.7,2491.6,4.83481]
[1730854194985,4.0123,2492.4,2491.6,0.8214]
[1730854195145,0.802441,2492.4,2491.6,0.8214]
[1730854195347,4.01253,2492.2,2491.6,0.81763512]
[1730854195589,4.01166,2492.8,2491.7,4.09353548]
[1730854195794,4.01166,2492.8,2492.0,4.01277]
[1730854195959,5.6374,2493.0,2492.0,4.01269]
[1730854196154,5.6374,2493.0,2492.2,4.0124]
[1730854196459,8.01,2493.5,2492.5,4.01193]
[1730854196460,4.01063,2493.4,2492.5,4.01193]
[1730854196967,4.01123,2493.0,2492.1,4.01256]
[1730854197180,4.01149,2492.9,2492.1,4.01256]
[1730854197340,4.01078,2493.3,2492.0,4.01278]
[1730854197696,4.01078,2493.3,2491.6,0.81763512]
[1730854197697,4.01166,2492.8,2491.9,4.0129]
[1730854198001,4.01109,2493.1,2492.3,4.01235]
[1730854198142,4.01109,2493.1,2491.9,4.41424]
[1730854198143,4.01114,2493.1,2491.9,0.40129]
[1730854198340,4.01124,2493.0,2492.1,4.01266]
[1730854198988,4.01124,2493.0,2492.2,4.01248]
[1730854199191,4.01099,2493.2,2491.9,0.55]
[1730854199192,4.0111,2493.1,2491.9,0.55]
[1730854199489,4.01088,2493.3,2492.2,4.01244]
[1730854199786,4.01108,2493.1,2492.3,4.01232]
[1730854199940,4.01125,2493.0,2492.2,4.01244]
[1730854200139,4.01125,2493.0,2492.1,4.01254]
[1730854200373,0.401088,2493.2,2492.2,4.09265325]
[1730854200578,4.01092,2493.2,2491.7,4.01332]
[1730854200777,4.01063,2493.4,2492.6,4.01186]
[1730854200978,0.8239,2493.5,2492.5,0.7506]
[1730854201277,4.01078,2493.3,2492.5,0.7506]
[1730854201612,4.01155,2492.8,2492.0,4.76335]
[1730854201799,0.8239,2493.5,2492.0,0.7506]
[1730854201800,9.7637505,2493.3,2492.0,0.7506]
[1730854202024,0.7953,2494.0,2492.0,0.7506]
[1730854202223,9.7637505,2494.3,2493.3,4.01065]
[1730854202224,8.01915,2494.1,2493.3,4.01065]
[1730854202374,4.0093,2494.2,2493.2,0.7506]
[1730854202580,9.01385,2494.5,2493.4,4.01049]
[1730854202581,0.005,2494.5,2493.4,4.01049]
[1730854202783,4.00932,2494.2,2493.4,4.01054]
[1730854203009,5.0,2494.2,2493.0,0.7506]
[1730854203259,5.0,2494.2,2492.5,4.76248]
[1730854203260,0.01,2494.1,2492.5,4.76248]
[1730854203525,0.005,2494.5,2493.1,0.7506]
[1730854203677,0.005,2494.5,2494.0,4.00958]
[1730854203880,0.005,2494.5,2493.8,4.00978]
[1730854204079,0.005,2494.5,2494.1,4.00935]
[1730854204304,0.7953,2495.3,2493.9,4.00976]
[1730854204504,0.7953,2495.3,2494.0,4.00954]
[1730854204729,0.7953,2495.3,2494.2,4.00929]